[Event "Icelandic Cup 2021"]
[Site "Reykjavik"]
[Date "2021.03.13"]
[Round "2.2"]
[White "Stefansson, Hannes"]
[Black "Gretarsson, Helgi Ass"]
[Result "0-1"]
[ECO "C41"]
[WhiteElo "2536"]
[BlackElo "2440"]
[Annotator "ChessBase"]
[PlyCount "101"]
[EventDate "2021.03.03"]
[EventType "k.o."]
[EventCountry "ISL"]
[SourceTitle "playchess.com"]
[Source "ChessBase"]
[SourceQuality "1"]
[TimeControl "5400+30"]

1. e4 {[%emt 0:00:00]} d6 {[%emt 0:00:22]} 2. d4 {[%emt 0:00:00]} Nf6 {[%emt 0:00:05]} 3. Nc3 {[%emt 0:00:53]} e5 {[%emt 0:00:51]} 4. Nf3 {[%emt 0:00:55]} Nbd7 {[%emt 0:00:06]} 5. Bc4 {[%emt 0:02:41]} Be7 {[%emt 0:00:11]} 6. O-O {[%emt 0:01:26]} c6 {[%emt 0:10:09]} 7. a4 {[%emt 0:02:52]} h6 {[%emt 0:09:25]} 8. Re1 {[%emt 0:07:11]} Qc7 {[%emt 0:09:00]} 9. h3 {[%emt 0:03:21]} a5 {[%emt 0:05:13]} 10. Be3 {[%emt 0:04:43]} g5 {[%emt 0:04:28]} 11. Bf1 {[%emt 0:14:55]} Nf8 {[%emt 0:06:12]} 12. Nd2 {[%emt 0:04:47]} g4 {[%emt 0:05:03]} 13. dxe5 {[%emt 0:08:25]} dxe5 {[%emt 0:00:05]} 14. Nc4 {[%emt 0:03:23]} gxh3 {[%emt 0:03:02]} 15. gxh3 {[%emt 0:01:16]} Be6 {[%emt 0:00:38]} 16. Bb6 {[%emt 0:01:45]} Qb8 {[%emt 0:00:09]} 17. Qd2 {[%emt 0:01:34]} Bb4 {[%emt 0:04:55]} 18. f4 {[%emt 0:05:39]} N8d7 {[%emt 0:05:01]} 19. Bf2 {[%emt 0:01:08]} Rg8+ {[%emt 0:08:37]} 20. Kh1 {[%emt 0:06:24]} exf4 {[%emt 0:00:19]} 21. e5 {[%emt 0:00:47]} Nh5 {[%emt 0:11:59]} 22. Kh2 {[%emt 0:00:40]} Kf8 {[%emt 0:02:45]} 23. Re4 {[%emt 0:07:13]} Qc7 {[%emt 0:05:28]} 24. Be2 {[%emt 0:03:08]} Ng3 {[%emt 0:04:38]} 25. Qxf4 {[%emt 0:02:06]} Nxe4 {[%emt 0:01:37]} 26. Qxh6+ {[%emt 0:02:34]} Ke8 {[%emt 0:00:05]} 27. Nxe4 {[%emt 0:00:11]} Nxe5 {[%emt 0:00:36]} 28. Bg3 {[%emt 0:04:23]} Rxg3 {[%emt 0:01:46]} 29. Qh8+ {[%emt 0:00:31]} Bf8 {[%emt 0:00:49]} 30. Ncd6+ {[%emt 0:02:02]} Kd7 {[%emt 0:00:08]} 31. Qxe5 {[%emt 0:00:36]} Rxh3+ {[%emt 0:00:12]} 32. Kg2 {[%emt 0:00:05]} Bxd6 {[%emt 0:00:06]} 33. Rd1 {[%emt 0:00:35]} Rg8+ {[%emt 0:00:17]} 34. Kf2 {[%emt 0:00:07]} Rh1 {[%emt 0:01:51]} 35. Rxd6+ {[%emt 0:01:09]} Kc8 {[%emt 0:00:00]} 36. Rxe6 {[%emt 0:00:18]} Qb6+ {[%emt 0:01:15]} 37. Nc5 {[%emt 0:01:42]} Rh2+ {[%emt 0:00:07]} 38. Kf1 {[%emt 0:03:13]} Rh1+ {[%emt 0:00:32]} 39. Kf2 {[%emt 0:00:06]} fxe6 {[%emt 0:00:30]} 40. Qxe6+ {[%emt 0:00:00]} Kb8 {[%emt 0:00:00]} 41. Qxg8+ {[%emt 0:00:00]} Ka7 {[%emt 0:00:00]} 42. Qg5 {[%emt 0:00:00]} Qxb2 {[%emt 0:00:00]} 43. Nb3 {[%emt 0:00:00]} Rh2+ {[%emt 0:00:00]} 44. Kf3 {[%emt 0:00:00]} Qh8 {[%emt 0:00:00]} 45. Qf5 {[%emt 0:00:00]} Qc3+ {[%emt 0:00:00]} 46. Bd3 {[%emt 0:00:00]} Rxc2 {[%emt 0:00:00]} 47. Qxa5+ {[%emt 0:00:00]} Qxa5 {[%emt 0:00:00]} 48. Nxa5 {[%emt 0:00:00]} Ra2 {[%emt 0:00:00]} 49. Be4 {[%emt 0:00:00]} Ra3+ {[%emt 0:00:00]} 50. Kf4 {[%emt 0:01:17]} Rc3 {[%emt 0:00:00]} 51. Ke5 {[%emt 0:01:37]} 0-1